fUSD/lending_fUSD_20251122
["ID","MTS","AMOUNT","RATE_DAILY","PERIOD"]
[394631245,1763796645738,-500.0,0.00016438,2]
[394631246,1763796645747,-500.0,0.00016438,2]
[394631247,1763796645756,-500.0,0.00016438,2]
[394631248,1763796645765,-500.0,0.00016438,2]
[394631249,1763796645775,-500.0,0.00016438,2]
[394631250,1763796645785,-500.0,0.00016438,2]
[394631251,1763796645795,-500.0,0.00016438,2]
[394631252,1763796645805,-593.17,0.00016438,2]
[394631253,1763796645815,-500.0,0.00016438,2]
[394631254,1763796645825,-500.0,0.00016438,2]
[394631255,1763796645835,-753.76,0.00016438,2]
[394631256,1763796645845,-615.24591325,0.00016438,2]
[394631257,1763796645855,-873.94,0.00016438,2]
[394631258,1763796645864,-500.0,0.00016438,2]
[394631259,1763796645873,-910.56,0.00016438,2]
[394631260,1763796645882,-500.0,0.00016438,2]
[394631261,1763796645892,-500.0,0.00016438,2]
[394631262,1763796645901,-500.0,0.00016438,2]
[394631263,1763796645910,-884.2,0.00016438,2]
[394631264,1763796645919,-474.72999271,0.00016438,2]
[394631265,1763796645928,-500.0,0.00016438,2]
[394631266,1763796645938,-500.0,0.00016438,2]
[394631267,1763796645947,-500.0,0.00016438,2]
[394631268,1763796645956,-500.0,0.00016438,2]
[394631269,1763796645965,-500.0,0.00016438,2]
[394631270,1763796645976,-500.0,0.00016438,2]
[394631271,1763796645985,-623.06,0.00016438,2]
[394631272,1763796645994,-500.0,0.00016438,2]
[394631273,1763796646004,-2009.89,0.00016438,2]
[394631274,1763796646015,-500.0,0.00016438,2]
[394631275,1763796646025,-235.74574495,0.00016438,2]
[394631276,1763796646035,-500.0,0.00016438,2]
[394631277,1763796646045,-500.0,0.00016438,2]
[394631278,1763796646057,-360.99566684,0.00016438,2]
[394631279,1763796646066,-500.0,0.00016438,2]
[394631280,1763796646075,-500.0,0.00016438,2]
[394631281,1763796646084,-500.0,0.00016438,2]
[394631282,1763796646094,-523.26,0.00016438,2]
[394631283,1763796646103,-1303.67,0.00016438,2]
[394631284,1763796646112,-500.0,0.00016438,2]
[394631285,1763796646122,-540.58441475,0.00016438,2]
[394631286,1763796646132,-500.0,0.00016438,2]
[394631287,1763796646141,-500.0,0.00016438,2]
[394631288,1763796646150,-500.0,0.00016438,2]
[394631289,1763796646159,-500.0,0.00016438,2]
[394631290,1763796646168,-613.92,0.00016438,2]
[394631291,1763796646177,-618.2,0.00016438,2]
[394631292,1763796646186,-500.0,0.00016438,2]
[394631293,1763796646195,-667.71,0.00016438,2]
[394631294,1763796646204,-561.94,0.00016438,2]
[394631295,1763796646214,-574.00069301,0.00016438,2]
[394631296,1763796646225,-500.0,0.00016438,2]
[394631297,1763796646234,-500.0,0.00016438,2]
[394631298,1763796646244,-500.0,0.00016438,2]
[394631299,1763796646254,-500.0,0.00016438,2]
[394631300,1763796646263,-500.0,0.00016438,2]
[394631301,1763796646272,-344.94854337,0.00016438,2]
[394631302,1763796646282,-500.0,0.00016438,2]
[394631303,1763796646291,-500.0,0.00016438,2]
[394631304,1763796646300,-500.0,0.00016438,2]
[394631305,1763796646311,-500.0,0.00016438,2]
[394631306,1763796646321,-599.23945986,0.00016438,2]
[394631307,1763796646330,-500.0,0.00016438,2]
[394631308,1763796646339,-616.21,0.00016438,2]
[394631309,1763796646349,-500.0,0.00016438,2]
[394631310,1763796646358,-500.0,0.00016438,2]
[394631311,1763796646367,-500.0,0.00016438,2]
[394631312,1763796646376,-811.98,0.00016438,2]
[394631313,1763796646385,-500.0,0.00016438,2]
[394631314,1763796646395,-500.0,0.00016438,2]
[394631315,1763796646404,-500.0,0.00016438,2]
[394631316,1763796646413,-498.76882327,0.00016438,2]
[394631317,1763796646423,-500.0,0.00016438,2]
[394631318,1763796646433,-500.0,0.00016438,2]
[394631319,1763796646443,-500.0,0.00016438,2]
[394631320,1763796646453,-500.0,0.00016438,2]
[394631321,1763796646462,-500.0,0.00016438,2]
[394631322,1763796646475,-1297.48,0.00016438,2]
[394631323,1763796646486,-500.0,0.00016438,2]
[394631324,1763796646495,-500.0,0.00016438,2]
[394631325,1763796646506,-635.94,0.00016438,2]
[394631326,1763796646515,-531.9,0.00016438,2]
[394631327,1763796646527,-500.0,0.00016438,2]
[394631328,1763796646536,-500.0,0.00016438,2]
[394631329,1763796646546,-500.0,0.00016438,2]
[394631330,1763796646558,-515.41,0.00016438,2]
[394631331,1763796646567,-1300.68,0.00016438,2]
[394631332,1763796646576,-500.0,0.00016438,2]
[394631333,1763796646586,-500.0,0.00016438,2]
[394631334,1763796646595,-500.0,0.00016438,2]
[394631335,1763796646604,-500.0,0.00016438,2]
[394631336,1763796646614,-500.0,0.00016438,2]
[394631337,1763796646623,-410.34553415,0.00016438,2]
[394631338,1763796646633,-500.0,0.00016438,2]
[394631339,1763796646642,-500.0,0.00016438,2]
[394631340,1763796646652,-869.21,0.00016438,2]
[394631341,1763796646661,-500.0,0.00016438,2]
[394631342,1763796646671,-1274.4,0.00016438,2]
[394631343,1763796646681,-625.74,0.00016438,2]
[394631344,1763796646690,-500.0,0.00016438,2]
[394631345,1763796646700,-828.82,0.00016438,2]
[394631346,1763796646709,-502.00765391,0.00016438,2]
[394631347,1763796646721,-780.09,0.00016438,2]
[394631348,1763796646731,-500.0,0.00016438,2]
[394631349,1763796646739,-500.0,0.00016438,2]
[394631350,1763796646749,-500.0,0.00016438,2]
[394631351,1763796646758,-500.0,0.00016438,2]
[394631352,1763796646767,-152.52917344,0.00016438,2]
[394631353,1763796646776,-500.0,0.00016438,2]
[394631354,1763796646785,-512.74,0.00016438,2]
[394631355,1763796646794,-748.54,0.00016438,2]
[394631356,1763796646803,-802.78,0.00016438,2]
[394631357,1763796646812,-965.69,0.00016438,2]
[394631358,1763796646821,-500.0,0.00016438,2]
[394631359,1763796646831,-500.0,0.00016438,2]
[394631360,1763796646840,-500.0,0.00016438,2]
[394631361,1763796646850,-1075.58,0.00016438,2]
[394631362,1763796646859,-500.0,0.00016438,2]
[394631363,1763796646868,-500.0,0.00016438,2]
[394631364,1763796646877,-500.0,0.00016438,2]
[394631365,1763796646887,-500.0,0.00016438,2]
[394631367,1763796646896,-555.18704775,0.00016438,2]
[394631369,1763796646905,-823.13,0.00016438,2]
[394631371,1763796646915,-615.75,0.00016438,2]
[394631373,1763796646924,-500.0,0.00016438,2]
[394631375,1763796646934,-735.57,0.00016438,2]
[394631377,1763796646942,-500.0,0.00016438,2]
[394631378,1763796646951,-500.0,0.00016438,2]
[394631379,1763796646960,-500.0,0.00016438,2]
[394631380,1763796646971,-612.84,0.00016438,2]
[394631381,1763796646980,-446.08357086,0.00016438,2]
[394631382,1763796646989,-500.0,0.00016438,2]
[394631383,1763796646998,-500.0,0.00016438,2]
[394631384,1763796647007,-500.0,0.00016438,2]
[394631385,1763796647016,-738.98,0.00016438,2]
[394631386,1763796647025,-500.0,0.00016438,2]
[394631387,1763796647034,-578.71648474,0.00016438,2]
[394631388,1763796647043,-500.0,0.00016438,2]
[394631389,1763796647053,-500.0,0.00016438,2]
[394631390,1763796647062,-500.0,0.00016438,2]
[394631391,1763796647071,-1600.26,0.00016438,2]
[394631392,1763796647080,-500.0,0.00016438,2]
[394631393,1763796647090,-500.0,0.00016438,2]
[394631394,1763796647099,-500.0,0.00016438,2]
[394631395,1763796647109,-500.0,0.00016438,2]
[394631396,1763796647118,-500.0,0.00016438,2]
[394631397,1763796647126,-500.0,0.00016438,2]
[394631398,1763796647136,-500.0,0.00016438,2]
[394631399,1763796647145,-500.0,0.00016438,2]
[394631400,1763796647153,-500.0,0.00016438,3]
[394631401,1763796647163,-500.0,0.00016438,4]
[394631402,1763796647172,-500.0,0.00016438,2]
[394631403,1763796647184,-500.0,0.00016438,2]
[394631404,1763796647194,-500.0,0.00016438,2]
[394631405,1763796647204,-500.0,0.00016438,2]
[394631406,1763796647214,-500.0,0.00016438,2]
[394631407,1763796647226,-500.0,0.00016438,2]
[394631408,1763796647235,-500.0,0.00016438,2]
[394631409,1763796647244,-500.0,0.00016438,2]
[394631410,1763796647253,-1048.59,0.00016438,2]
[394631411,1763796647263,-500.0,0.00016438,2]
[394631412,1763796647272,-415.5741458,0.00016438,2]
[394631413,1763796647281,-500.0,0.00016438,2]
[394631414,1763796647290,-500.0,0.00016438,2]
[394631415,1763796647299,-500.0,0.00016438,2]
[394631416,1763796647309,-500.0,0.00016438,2]
[394631417,1763796647318,-391.4072665,0.00016438,2]
[394631418,1763796647327,-1445.39,0.00016438,2]
[394631419,1763796647336,-500.0,0.00016438,2]
[394631420,1763796647345,-513.34935857,0.00016438,2]
[394631421,1763796647354,-409.28404061,0.00016438,2]
[394631422,1763796647364,-500.0,0.00016438,2]
[394631423,1763796647373,-500.0,0.00016438,2]
[394631424,1763796647382,-663.09,0.00016438,2]
[394631425,1763796647392,-845.6,0.00016438,2]
[394631426,1763796647401,-821.34,0.00016438,2]
[394631427,1763796647411,-500.0,0.00016438,2]
[394631428,1763796647420,-500.0,0.00016438,2]
[394631429,1763796647430,-412.47846423,0.00016438,2]
[394631430,1763796647439,-500.0,0.00016438,2]
[394631431,1763796647448,-500.0,0.00016438,2]
[394631432,1763796647458,-500.0,0.00016438,2]
[394631433,1763796647469,-500.0,0.00016438,2]
[394631434,1763796647479,-534.9,0.00016438,2]
[394631435,1763796647488,-500.0,0.00016438,2]
[394631436,1763796647498,-500.0,0.00016438,2]
[394631437,1763796647507,-500.0,0.00016438,2]
[394631438,1763796647516,-500.0,0.00016438,2]
[394631439,1763796647526,-500.0,0.00016438,2]
[394631440,1763796647535,-500.0,0.00016438,2]
[394631441,1763796647545,-500.0,0.00016438,2]
[394631442,1763796647555,-622.83443556,0.00016438,2]
[394631443,1763796647565,-514.46390555,0.00016438,2]
[394631444,1763796647574,-543.03,0.00016438,2]
[394631445,1763796647583,-500.0,0.00016438,2]
[394631446,1763796647592,-500.0,0.00016438,2]
[394631447,1763796647602,-626.83000478,0.00016438,2]
[394631448,1763796647611,-500.0,0.00016438,2]
[394631449,1763796647620,-500.0,0.00016438,2]
[394631450,1763796647630,-500.0,0.00016438,2]
[394631451,1763796647639,-643.11955397,0.00016438,2]
[394631452,1763796647648,-420.74864404,0.00016438,2]
[394631453,1763796647657,-500.0,0.00016438,2]
[394631454,1763796647666,-500.0,0.00016438,2]
[394631455,1763796647676,-500.0,0.00016438,2]
[394631456,1763796647685,-446.40226191,0.00016438,2]
[394631457,1763796647694,-500.0,0.00016438,2]
[394631458,1763796647703,-500.0,0.00016438,2]
[394631459,1763796647713,-975.62,0.00016438,2]
[394631460,1763796647722,-821.6,0.00016438,2]
[394631461,1763796647731,-500.0,0.00016438,2]
[394631462,1763796647740,-500.0,0.00016438,2]
[394631463,1763796647750,-500.0,0.00016438,2]
[394631464,1763796647762,-500.0,0.00016438,2]
[394631465,1763796647771,-500.0,0.00016438,2]
[394631466,1763796647781,-500.0,0.00016438,2]
[394631467,1763796647791,-500.0,0.00016438,2]
[394631468,1763796647800,-924.1,0.00016438,2]
[394631469,1763796647809,-4436.35,0.00016438,2]
[394631470,1763796647818,-500.0,0.00016438,2]
[394631471,1763796647828,-539.85,0.00016438,2]
[394631472,1763796647836,-427.07831054,0.00016438,2]
[394631473,1763796647845,-500.0,0.00016438,2]
[394631474,1763796647854,-412.58883384,0.00016438,2]
[394631475,1763796647864,-500.0,0.00016438,2]
[394631476,1763796647873,-500.0,0.00016438,2]
[394631477,1763796647883,-500.0,0.00016438,2]
[394631478,1763796647893,-704.13,0.00016438,2]
[394631479,1763796647902,-500.0,0.00016438,2]
[394631480,1763796647912,-538.66636539,0.00016438,2]
[394631481,1763796647921,-824.64,0.00016438,2]
[394631482,1763796647930,-500.0,0.00016438,2]
[394631483,1763796647939,-500.0,0.00016438,2]
[394631484,1763796647948,-500.0,0.00016438,2]
[394631485,1763796647957,-1267.25,0.00016438,2]
[394631486,1763796647966,-1129.04,0.00016438,2]
[394631487,1763796647977,-377.9439423,0.00016438,2]
[394631488,1763796647986,-500.0,0.00016438,2]
[394631489,1763796647995,-500.0,0.00016438,2]
[394631490,1763796648004,-975.13,0.00016438,2]
[394631491,1763796648013,-717.26,0.00016438,2]
[394631492,1763796648022,-802.39,0.00016438,2]
[394631493,1763796648031,-500.0,0.00016438,2]
[394631494,1763796648040,-402.99126063,0.00016438,2]
[394631495,1763796648051,-500.0,0.00016438,2]
[394631496,1763796648060,-500.0,0.00016438,2]
[394631497,1763796648070,-500.0,0.00016438,2]
[394631498,1763796648081,-500.0,0.00016438,2]
[394631499,1763796648091,-300.0,0.00016438,2]
[394631500,1763796648103,-994.37,0.00016438,2]
[394631501,1763796648112,-500.0,0.00016438,2]
[394631502,1763796648122,-1013.71,0.00016438,2]
[394631503,1763796648134,-500.0,0.00016438,2]
[394631504,1763796648144,-500.0,0.00016438,2]
[394631505,1763796648153,-500.0,0.00016438,2]
[394631506,1763796648162,-500.0,0.00016438,2]
[394631507,1763796648171,-537.79789632,0.00016438,2]
[394631508,1763796648180,-602.17188519,0.00016438,2]
[394631509,1763796648188,-406.53237433,0.00016438,2]
[394631510,1763796648198,-1689.91,0.00016438,2]
[394631511,1763796648207,-683.4,0.00016438,2]
[394631512,1763796648216,-500.0,0.00016438,2]
[394631513,1763796648227,-500.0,0.00016438,2]
[394631514,1763796648236,-500.0,0.00016438,2]
[394631515,1763796648245,-500.0,0.00016438,2]
[394631516,1763796648255,-500.0,0.00016438,2]
[394631517,1763796648263,-500.0,0.00016438,2]
[394631518,1763796648273,-514.06,0.00016438,2]
[394631519,1763796648282,-1212.98,0.00016438,2]
[394631520,1763796648291,-500.0,0.00016438,2]
[394631521,1763796648300,-500.0,0.00016438,2]
[394631522,1763796648309,-500.0,0.00016438,2]
[394631523,1763796648318,-500.0,0.00016438,2]
[394631524,1763796648327,-540.3452387,0.00016438,2]
[394631525,1763796648336,-500.0,0.00016438,2]
[394631526,1763796648345,-500.0,0.00016438,2]
[394631527,1763796648354,-500.0,0.00016438,2]
[394631528,1763796648364,-1078.8,0.00016438,2]
[394631529,1763796648374,-500.0,0.00016438,2]
[394631530,1763796648384,-500.0,0.00016438,2]
[394631531,1763796648393,-500.0,0.00016438,2]
[394631532,1763796648403,-500.0,0.00016438,2]
[394631533,1763796648412,-592.4,0.00016438,2]
[394631534,1763796648422,-1165.88,0.00016438,2]
[394631535,1763796648432,-1873.13,0.00016438,2]
[394631536,1763796648441,-500.0,0.00016438,2]
[394631537,1763796648451,-500.0,0.00016438,2]
[394631538,1763796648460,-407.21384943,0.00016438,2]
[394631539,1763796648470,-581.76,0.00016438,2]
[394631540,1763796648483,-500.0,0.00016438,2]
[394631541,1763796648492,-500.0,0.00016438,2]
[394631542,1763796648502,-500.0,0.00016438,2]
[394631543,1763796648512,-500.0,0.00016438,2]
[394631544,1763796648523,-500.0,0.00016438,2]
[394631545,1763796648533,-500.0,0.00016438,2]
[394631546,1763796648543,-1223.28,0.00016438,2]
[394631547,1763796648553,-717.29,0.00016438,2]
[394631548,1763796648563,-500.0,0.00016438,2]
[394631549,1763796648572,-500.0,0.00016438,2]
[394631550,1763796648582,-526.43778965,0.00016438,2]
[394631551,1763796648591,-1170.79,0.00016438,2]
[394631552,1763796648602,-500.0,0.00016438,2]
[394631553,1763796648611,-500.0,0.00016438,2]
[394631554,1763796648620,-500.0,0.00016438,2]
[394631555,1763796648630,-721.84,0.00016438,2]
[394631556,1763796648640,-500.0,0.00016438,2]
[394631557,1763796648650,-500.0,0.00016438,2]
[394631558,1763796648659,-500.0,0.00016438,2]
[394631559,1763796648669,-500.0,0.00016438,2]
[394631560,1763796648679,-500.0,0.00016438,2]
[394631561,1763796648688,-500.0,0.00016438,2]
[394631562,1763796648698,-152.77981932,0.00016438,2]
[394631563,1763796648707,-500.0,0.00016438,2]
[394631564,1763796648717,-666.24,0.00016438,2]
[394631565,1763796648728,-957.18,0.00016438,2]
[394631566,1763796648738,-500.0,0.00016438,2]
[394631567,1763796648747,-500.0,0.00016438,2]
[394631568,1763796648757,-640.94,0.00016438,2]
[394631569,1763796648766,-633.94,0.00016438,2]
[394631570,1763796648776,-500.0,0.00016438,2]
[394631571,1763796648786,-500.0,0.00016438,2]
[394631572,1763796648795,-500.0,0.00016438,2]
[394631573,1763796648805,-500.0,0.00016438,2]
[394631574,1763796648815,-613.02,0.00016438,2]
[394631575,1763796648824,-500.0,0.00016438,2]
[394631576,1763796648833,-978.78,0.00016438,2]
[394631577,1763796648843,-227.28300079,0.00016438,2]
[394631578,1763796648852,-337.77100358,0.00016438,2]
[394631579,1763796648861,-500.0,0.00016438,2]
[394631580,1763796648871,-500.0,0.00016438,2]
[394631581,1763796648880,-500.0,0.00016438,2]
[394631582,1763796648890,-500.0,0.00016438,2]
[394631583,1763796648899,-500.0,0.00016438,2]
[394631584,1763796648909,-500.0,0.00016438,2]
[394631585,1763796648919,-500.0,0.00016438,2]
[394631586,1763796648929,-500.0,0.00016438,2]
[394631587,1763796648938,-500.0,0.00016438,2]
[394631588,1763796648948,-500.0,0.00016438,2]
[394631589,1763796648957,-500.0,0.00016438,2]
[394631590,1763796648966,-597.25,0.00016438,2]
[394631591,1763796648976,-500.0,0.00016438,2]
[394631592,1763796648986,-517.59,0.00016438,2]
[394631593,1763796648995,-547.59804671,0.00016438,2]
[394631594,1763796649005,-404.33337585,0.00016438,2]
[394631595,1763796649015,-500.0,0.00016438,2]
[394631596,1763796649025,-890.46,0.00016438,2]
[394631597,1763796649035,-620.53,0.00016438,2]
[394631598,1763796649046,-500.0,0.00016438,2]
[394631599,1763796649058,-500.0,0.00016438,2]
[394631600,1763796649071,-679.21,0.00016438,2]
[394631601,1763796649082,-500.0,0.00016438,2]
[394631602,1763796649092,-1192.21,0.00016438,2]
[394631603,1763796649103,-500.0,0.00016438,2]
[394631604,1763796649113,-500.0,0.00016438,2]
[394631605,1763796649125,-500.0,0.00016438,2]
[394631606,1763796649134,-500.0,0.00016438,2]
[394631607,1763796649143,-500.0,0.00016438,2]
[394631608,1763796649154,-500.0,0.00016438,2]
[394631609,1763796649163,-619.23,0.00016438,2]
[394631610,1763796649174,-1487.39,0.00016438,2]
[394631611,1763796649184,-500.0,0.00016438,2]
[394631612,1763796649193,-547.62,0.00016438,2]
[394631613,1763796649203,-948.04,0.00016438,2]
[394631614,1763796649213,-500.0,0.00016438,2]
[394631615,1763796649222,-500.0,0.00016438,2]
[394631616,1763796649232,-500.0,0.00016438,2]
[394631617,1763796649242,-500.0,0.00016438,2]
[394631618,1763796649252,-672.02,0.00016438,2]
[394631619,1763796649263,-500.0,0.00016438,2]
[394631620,1763796649272,-500.0,0.00016438,2]
[394631621,1763796649284,-500.0,0.00016438,2]
[394631622,1763796649296,-977.44,0.00016438,2]
[394631623,1763796649306,-500.0,0.00016438,2]
[394631624,1763796649317,-500.0,0.00016438,2]
[394631625,1763796649326,-1247.98,0.00016438,2]
[394631626,1763796649336,-500.0,0.00016438,2]
[394631627,1763796649346,-504.68029361,0.00016438,2]
[394631628,1763796649356,-500.0,0.00016438,2]
[394631629,1763796649366,-500.0,0.00016438,2]
[394631630,1763796649375,-500.0,0.00016438,2]
[394631631,1763796649388,-500.0,0.00016438,2]
[394631632,1763796649398,-1251.92,0.00016438,2]
[394631633,1763796649408,-500.0,0.00016438,2]
[394631634,1763796649417,-500.0,0.00016438,2]
[394631635,1763796649427,-500.0,0.00016438,2]
[394631636,1763796649437,-500.0,0.00016438,2]
[394631637,1763796649447,-828.92,0.00016438,2]
[394631638,1763796649457,-500.0,0.00016438,2]
[394631639,1763796649467,-500.0,0.00016438,2]
[394631640,1763796649480,-500.0,0.00016438,2]
[394631641,1763796649490,-300.0,0.00016438,2]
[394631642,1763796649500,-622.78,0.00016438,2]
[394631643,1763796649511,-1071.5,0.00016438,2]
[394631644,1763796649520,-548.08959075,0.00016438,2]
[394631645,1763796649533,-640.58,0.00016438,2]
[394631646,1763796649543,-1558.87,0.00016438,2]
[394631647,1763796649553,-500.0,0.00016438,2]
[394631648,1763796649563,-500.0,0.00016438,2]
[394631649,1763796649572,-500.0,0.00016438,2]
[394631650,1763796649582,-500.0,0.00016438,2]
[394631651,1763796649592,-500.0,0.00016438,2]
[394631652,1763796649602,-500.0,0.00016438,2]
[394631653,1763796649611,-336.06,0.00016438,2]
[394631654,1763796649621,-500.0,0.00016438,2]
[394631655,1763796649630,-500.0,0.00016438,2]
[394631656,1763796649640,-1277.46,0.00016438,2]
[394631657,1763796649650,-500.0,0.00016438,2]
[394631658,1763796649659,-500.0,0.00016438,2]
[394631659,1763796649668,-497.94574821,0.00016438,2]
[394631660,1763796649677,-500.0,0.00016438,2]
[394631661,1763796649687,-2118.65,0.00016438,2]
[394631662,1763796649696,-500.0,0.00016438,2]
[394631663,1763796649705,-1995.8,0.00016438,2]
[394631664,1763796649714,-500.0,0.00016438,2]
[394631665,1763796649724,-500.0,0.00016438,2]
[394631666,1763796649733,-500.0,0.00016438,2]
[394631667,1763796649743,-547.28,0.00016438,2]
[394631668,1763796649751,-594.06071205,0.00016438,2]
[394631669,1763796649761,-500.0,0.00016438,2]
[394631670,1763796649770,-500.0,0.00016438,2]
[394631671,1763796649779,-500.0,0.00016438,2]
[394631672,1763796649788,-500.0,0.00016438,2]
[394631673,1763796649798,-425.30259703,0.00016438,2]
[394631674,1763796649807,-500.0,0.00016438,2]
[394631675,1763796649816,-799.88,0.00016438,2]
[394631676,1763796649826,-345.37985756,0.00016438,2]
[394631677,1763796649836,-500.0,0.00016438,2]
[394631678,1763796649845,-525.60980687,0.00016438,2]
[394631679,1763796649855,-1431.54,0.00016438,2]
[394631680,1763796649865,-500.0,0.00016438,2]
[394631681,1763796649875,-500.0,0.00016438,2]
[394631682,1763796649889,-301.31414032,0.00016438,2]
[394631683,1763796649907,-500.0,0.00016438,2]
[394631684,1763796649926,-500.0,0.00016438,2]
[394631685,1763796649935,-2600.51,0.00016438,2]
[394631686,1763796649945,-514.75719222,0.00016438,2]
[394631687,1763796649954,-500.0,0.00016438,2]
[394631688,1763796649963,-500.0,0.00016438,2]
[394631689,1763796649974,-500.0,0.00016438,2]
[394631690,1763796649983,-609.58,0.00016438,2]
[394631691,1763796649992,-500.0,0.00016438,2]
[394631692,1763796650002,-1283.11,0.00016438,2]
[394631693,1763796650011,-570.56008556,0.00016438,2]
[394631694,1763796650021,-500.0,0.00016438,2]
[394631695,1763796650030,-1222.43,0.00016438,2]
[394631696,1763796650041,-696.03,0.00016438,2]
[394631697,1763796650050,-500.0,0.00016438,2]
[394631698,1763796650059,-381.49048947,0.00016438,2]
[394631699,1763796650070,-606.62260077,0.00016438,2]
[394631700,1763796650081,-935.44,0.00016438,2]
[394631701,1763796650091,-500.0,0.00016438,2]
[394631702,1763796650102,-417.96625999,0.00016438,2]
[394631703,1763796650114,-500.0,0.00016438,2]
[394631704,1763796650123,-500.0,0.00016438,2]
[394631705,1763796650133,-413.67716462,0.00016438,2]
[394631706,1763796650143,-500.0,0.00016438,2]
[394631707,1763796650152,-844.71,0.00016438,2]
[394631708,1763796650162,-500.0,0.00016438,2]
[394631709,1763796650171,-827.22,0.00016438,2]
[394631710,1763796650180,-500.0,0.00016438,2]
[394631711,1763796650190,-508.26,0.00016438,2]
[394631712,1763796650199,-500.0,0.00016438,2]
[394631713,1763796650209,-500.0,0.00016438,2]
[394631714,1763796650219,-1112.72,0.00016438,2]
[394631715,1763796650232,-423.99450735,0.00016438,2]
[394631716,1763796650242,-827.37,0.00016438,2]
[394631717,1763796650252,-310.16462738,0.00016438,2]
[394631718,1763796650262,-500.0,0.00016438,2]
[394631719,1763796650274,-500.0,0.00016438,2]
[394631720,1763796650284,-574.63,0.00016438,2]
[394631721,1763796650296,-500.0,0.00016438,2]
[394631722,1763796650306,-500.0,0.00016438,2]
[394631723,1763796650316,-500.0,0.00016438,2]
[394631724,1763796650326,-8191.29,0.00016438,2]
[394631725,1763796650336,-1003.53,0.00016438,2]
[394631726,1763796650346,-500.0,0.00016438,2]
[394631727,1763796650356,-500.0,0.00016438,2]
[394631728,1763796650366,-500.0,0.00016438,2]
[394631729,1763796650376,-500.0,0.00016438,2]
[394631730,1763796650386,-500.0,0.00016438,2]
[394631731,1763796650395,-500.0,0.00016438,2]
[394631732,1763796650405,-500.0,0.00016438,2]
[394631733,1763796650415,-500.0,0.00016438,2]
[394631734,1763796650425,-500.0,0.00016438,2]
[394631735,1763796650435,-500.0,0.00016438,2]
[394631736,1763796650445,-500.0,0.00016438,2]
[394631737,1763796650455,-500.0,0.00016438,2]
[394631738,1763796650466,-500.0,0.00016438,2]
[394631739,1763796650479,-500.0,0.00016438,2]
[394631740,1763796650488,-627.76,0.00016438,2]
[394631741,1763796650498,-500.0,0.00016438,2]
[394631742,1763796650508,-599.49246749,0.00016438,2]
[394631743,1763796650518,-500.0,0.00016438,2]
[394631744,1763796650528,-500.0,0.00016438,2]
[394631745,1763796650538,-500.0,0.00016438,2]
[394631746,1763796650549,-918.21,0.00016438,2]
[394631747,1763796650560,-1032.77,0.00016438,2]
[394631748,1763796650570,-745.43,0.00016438,2]
[394631749,1763796650582,-500.0,0.00016438,2]
[394631750,1763796650593,-804.17,0.00016438,2]